﻿Department family,Entity,Date,Expense type,Expense area,Supplier,Transaction number,Amount,VAT registration number
Dept of Health,MHRA,04/01/2022,Assets Under Construction - Clearing Account,"Technology, Digital, Data & Delivery",Appian Software International LLC,NS_9051,"596,000.00 ",
Dept of Health,MHRA,04/01/2022,Application Services and Maintenance,"Technology, Digital, Data & Delivery",Insife ApS,386,"244,040.33 ",
Dept of Health,MHRA,05/01/2022,Assets Under Construction - Land & Buildings,Infrastructure & Operations,Detail Design Engineering LTD,14164,"30,032.76 ",561067355
Dept of Health,MHRA,05/01/2022,Professional Memberships,"Technology, Digital, Data & Delivery",Gartner UK Limited,20116715,"134,640.00 ",635878884
Dept of Health,MHRA,05/01/2022,Solicitors,Policy,Government Legal Department,A3480,"291,000.00 ",888823066
Dept of Health,MHRA,05/01/2022,Accommodation Rent,Facilities & Estates,Government Property Agency,00000001/13496,"95,512.07 ",888801080
Dept of Health,MHRA,05/01/2022,Facilities Management & Portering,Facilities & Estates,Government Property Agency,00000001/13496,"41,160.06 ",888801080
Dept of Health,MHRA,05/01/2022,Accommodation Rates,Facilities & Estates,Government Property Agency,00000001/13496,"32,635.89 ",888801080
Dept of Health,MHRA,05/01/2022,Accommodation Service Charge,Facilities & Estates,Government Property Agency,00000001/13496,"22,998.34 ",888801080
Dept of Health,MHRA,05/01/2022,Electricity,Facilities & Estates,Government Property Agency,00000001/13496,"9,796.71 ",888801080
Dept of Health,MHRA,05/01/2022,Security,Facilities & Estates,Government Property Agency,00000001/13496,"9,033.36 ",888801080
Dept of Health,MHRA,05/01/2022,Infrastructure Services and Maintenance,Facilities & Estates,Government Property Agency,00000001/13496,"5,024.69 ",888801080
Dept of Health,MHRA,05/01/2022,Accommodation Rent,Facilities & Estates,Government Property Agency,00000001/13497,"49,021.86 ",888801080
Dept of Health,MHRA,05/01/2022,Facilities Management & Portering,Facilities & Estates,Government Property Agency,00000001/13497,"22,653.70 ",888801080
Dept of Health,MHRA,05/01/2022,Accommodation Rates,Facilities & Estates,Government Property Agency,00000001/13497,"16,750.47 ",888801080
Dept of Health,MHRA,05/01/2022,Accommodation Service Charge,Facilities & Estates,Government Property Agency,00000001/13497,"11,828.62 ",888801080
Dept of Health,MHRA,05/01/2022,Electricity,Facilities & Estates,Government Property Agency,00000001/13497,"5,038.91 ",888801080
Dept of Health,MHRA,05/01/2022,Security,Facilities & Estates,Government Property Agency,00000001/13497,"4,646.15 ",888801080
Dept of Health,MHRA,05/01/2022,Infrastructure Services and Maintenance,Facilities & Estates,Government Property Agency,00000001/13497,"2,584.45 ",888801080
Dept of Health,MHRA,05/01/2022,Accommodation Rates,Infrastructure & Operations,Hertsmere Borough Council,Business Rates Bill: 2021/2022,"834,456.00 ",230640406
Dept of Health,MHRA,05/01/2022,Library & Periodical Subscriptions,Communications,LM Prenax UK,1554266,"35,202.27 ",356947157
Dept of Health,MHRA,05/01/2022,Contracted Out Services Miscellaneous,Communications,NHS Business Service Authority,0000064219,"43,507.00 ",654434729
Dept of Health,MHRA,05/01/2022,Assets Under Construction - Land & Buildings,Infrastructure & Operations,Parker Air Conditioning Ltd,INV25748,"95,164.68 ",506700965
Dept of Health,MHRA,05/01/2022,Assets Under Construction - Land & Buildings,Infrastructure & Operations,Parker Air Conditioning Ltd,INV25749,"32,400.00 ",506700965
Dept of Health,MHRA,05/01/2022,Contracted Out Services Miscellaneous,"Technology, Digital, Data & Delivery",Red Ant Digital Ltd,INV-08798,"36,000.00 ",123388322
Dept of Health,MHRA,05/01/2022,Contracted Out Services Miscellaneous,"Technology, Digital, Data & Delivery",Redrock Consulting Ltd,10305,"114,038.56 ",862247715
Dept of Health,MHRA,05/01/2022,Assets Under Construction - Plant & Equipment,Infrastructure & Operations,Scientific Laboratory Supplies Limited,SI187332101,"76,609.20 ",572692021
Dept of Health,MHRA,05/01/2022,Infrastructure Services and Maintenance,"Technology, Digital, Data & Delivery",Sungard Availability Services (UK) Limited,21004344,"53,999.99 ",823829709
Dept of Health,MHRA,05/01/2022,Infrastructure Services and Maintenance,"Technology, Digital, Data & Delivery",Trustmarque Solutions Limited,2331939,"181,786.40 ",394593601
Dept of Health,MHRA,05/01/2022,Miscellaneous Costs,Devices,University of Birmingham NHS Foundation Trust,OPY038815,"112,300.00 ",654965101
Dept of Health,MHRA,10/01/2022,Contracted Out Services Miscellaneous,"Technology, Digital, Data & Delivery",Credera Limited,INV007010,"126,767.26 ",283541886
Dept of Health,MHRA,10/01/2022,Solicitors,Policy,Government Legal Department,A3402,"291,000.00 ",888823066
Dept of Health,MHRA,10/01/2022,Solicitors,Policy,Government Legal Department,A3403,"71,700.00 ",888823066
Dept of Health,MHRA,10/01/2022,Solicitors,Policy,Government Legal Department,A3481,"71,700.00 ",888823066
Dept of Health,MHRA,10/01/2022,Application Services and Maintenance,"Technology, Digital, Data & Delivery",Greenwood Campbell Ltd,I2662,"33,240.00 ",978404972
Dept of Health,MHRA,10/01/2022,Infrastructure Services and Maintenance,"Technology, Digital, Data & Delivery",NTT Data UK Ltd,4020476,"38,300.00 ",159334590
Dept of Health,MHRA,10/01/2022,Infrastructure Services and Maintenance,"Technology, Digital, Data & Delivery",NTT Data UK Ltd,4020477,"147,596.90 ",159334590
Dept of Health,MHRA,10/01/2022,Infrastructure Services and Maintenance,"Technology, Digital, Data & Delivery",NTT Data UK Ltd,4020479,"39,181.90 ",159334590
Dept of Health,MHRA,10/01/2022,Contracted Out Services Miscellaneous,Vigilance & Risk Management of Medicines,Red Ant Digital Ltd,INV-08808,"60,000.00 ",123388322
Dept of Health,MHRA,10/01/2022,Infrastructure Services and Maintenance,"Technology, Digital, Data & Delivery",Trustmarque Solutions Limited,2332314,"187,492.26 ",394593601
Dept of Health,MHRA,12/01/2022,Application Services and Maintenance,"Technology, Digital, Data & Delivery",Accenture (UK) Limited,3003534734,"26,500.01 ",788629066
Dept of Health,MHRA,12/01/2022,Application Services and Maintenance,"Technology, Digital, Data & Delivery",Accenture (UK) Limited,3003534735,"317,556.56 ",788629066
Dept of Health,MHRA,12/01/2022,Gas,Infrastructure & Operations,Corona Energy Retail 4 Ltd,16678247,"45,872.20 ",577704800
Dept of Health,MHRA,12/01/2022,Contracted Out Services Miscellaneous,"Technology, Digital, Data & Delivery",Redrock Consulting Ltd,10317,"215,084.83 ",862247715
Dept of Health,MHRA,12/01/2022,Assets Under Construction - Plant & Equipment,Infrastructure & Operations,Thermo Fisher Scientific,9112155711,"1,281,341.19 ",827900029
Dept of Health,MHRA,17/01/2022,Recruitment (General),Transformation,Cabinet Office,3812511,"124,231.20 ",888801080
Dept of Health,MHRA,17/01/2022,Library & Periodical Subscriptions,Communications,LM Prenax UK,1554264,"131,025.54 ",356947157
Dept of Health,MHRA,17/01/2022,Library & Periodical Subscriptions,Communications,LM Prenax UK,1555018,"115,617.22 ",356947157
Dept of Health,MHRA,19/01/2022,Application Services and Maintenance,"Technology, Digital, Data & Delivery",Accenture (UK) Limited,3003535383,"88,504.30 ",788629066
Dept of Health,MHRA,19/01/2022,Application Services and Maintenance,"Technology, Digital, Data & Delivery",Accenture (UK) Limited,3003535621,"135,028.85 ",788629066
Dept of Health,MHRA,19/01/2022,Assets Under Construction - Land & Buildings,Infrastructure & Operations,Binns Fencing Limited,7495,"32,269.55 ",220372802
Dept of Health,MHRA,19/01/2022,Subcontracted Laboratory Services,Infectious Disease Diagnostics,CGTC Manufacturing Innovation Centre Limited,3174,"25,461.00 ",154421433
Dept of Health,MHRA,19/01/2022,Security,Infrastructure & Operations,CIS Security Limited,47013,"52,816.88 ",206193092
Dept of Health,MHRA,19/01/2022,Assets Under Construction - Land & Buildings,Infrastructure & Operations,Commercial Services UK Ltd,INV-1257,"52,847.76 ",130597616
Dept of Health,MHRA,19/01/2022,Internal Audit,Governance Office,Government Internal Audit Agency,44078,"37,329.00 ",888827544
Dept of Health,MHRA,19/01/2022,Infrastructure Services and Maintenance,"Technology, Digital, Data & Delivery",NTT Data UK Ltd,4020648,"147,596.90 ",159334590
Dept of Health,MHRA,19/01/2022,Infrastructure Services and Maintenance,"Technology, Digital, Data & Delivery",NTT Data UK Ltd,4020649,"38,300.00 ",159334590
Dept of Health,MHRA,19/01/2022,Infrastructure Services and Maintenance,"Technology, Digital, Data & Delivery",NTT Data UK Ltd,4020651,"39,181.90 ",159334590
Dept of Health,MHRA,20/01/2022,Assets Under Construction - Clearing Account,Analytical & Biological Sciences,ASPIDA,F2021011,"33,561.56 ",
Dept of Health,MHRA,24/01/2022,Application Services and Maintenance,"Technology, Digital, Data & Delivery",Accenture (UK) Limited,3003535376,"98,349.47 ",788629066
Dept of Health,MHRA,24/01/2022,IT Consultancy,"Technology, Digital, Data & Delivery",Accenture (UK) Limited,3003535624,"28,891.20 ",788629066
Dept of Health,MHRA,24/01/2022,Application Services and Maintenance,"Technology, Digital, Data & Delivery",Accenture (UK) Limited,3003535640,"136,048.30 ",788629066
Dept of Health,MHRA,24/01/2022,Application Services and Maintenance,"Technology, Digital, Data & Delivery",Accenture (UK) Limited,3003535643,"63,824.40 ",788629066
Dept of Health,MHRA,24/01/2022,Assets Under Construction - Land & Buildings,Infrastructure & Operations,Commercial Services UK Ltd,INV-1241,"127,085.26 ",130597616
Dept of Health,MHRA,24/01/2022,Assets Under Construction - Contract Services,Infrastructure & Operations,Commercial Services UK Ltd,INV-1261,"38,872.07 ",130597616
Dept of Health,MHRA,24/01/2022,Lab Equipment Repairs and Maintenance,Infrastructure & Operations,Global Life Sciences Solutions Operations UK Ltd (Cytiva),585017653,"30,691.20 ",333194219
Dept of Health,MHRA,24/01/2022,Subcontracted Laboratory Services,Infectious Disease Diagnostics,UK Health Security Agency,5004173,"173,013.65 ",888849628
Dept of Health,MHRA,26/01/2022,Software & Licences,"Technology, Digital, Data & Delivery",Blue Prism Limited,INV22114A,"108,000.00 ",241843906
Dept of Health,MHRA,26/01/2022,Software & Licences,"Technology, Digital, Data & Delivery",Clearvision (CM) 2005 Ltd,cvuk18135,"41,049.78 ",881364801
Dept of Health,MHRA,26/01/2022,Contracted Out Services Miscellaneous,Transformation,Ernst & Young LLP,GB01G000262891,"615,296.92 ",773831408
Dept of Health,MHRA,28/01/2022,Electricity,Infrastructure & Operations,EDF Energy,11216654,"-89,998.71 ",523041202
Dept of Health,MHRA,28/01/2022,Electricity,Infrastructure & Operations,EDF Energy,11216660,"89,977.04 ",523041202
Dept of Health,MHRA,28/01/2022,Electricity,Infrastructure & Operations,EDF Energy,11270355,"86,458.96 ",523041202
Dept of Health,MHRA,31/01/2022,"Service, Integration & Management - Enterprise Architecture","Technology, Digital, Data & Delivery",Certes IT Service Solutions Ltd,9375,"52,020.00 ",377345131
Dept of Health,MHRA,31/01/2022,Assets Under Construction - Clearing Account,"Inspection, Enforcement & Standards",Robins & Day,435985,"26,988.00 ",272369149
